{"text_format":"1","workbook":"xlsx","n_sheets":5,"sheets":["Anleitung","GruppenanmeldungGäste","Konfig","config","AuswahlListen"],"not_rendered":{"charts":0,"images":1,"macros":1,"external_links":0,"defined_names":18,"comments":0,"pivot_tables":0},"unopened":[],"bounds":{"document_bytes":16777216,"sheet_cells":100000,"rows_first":2000,"rows_last":500,"rows_between":2000,"halvings":0,"cell_chars":16384,"cell_head_chars":4096},"cells_cut":0,"cells_raw":0,"read":"whole","date_system":"1900"}

{"sheet":"Anleitung","index":0,"n_rows":19,"n_cols":6,"rows_kept":19,"cut":false,"hidden":false,"merged":[[1,1,2,4],[1,5,2,5],[12,1,12,2],[5,1,5,4],[3,1,3,4],[4,1,4,4],[8,4,12,4]]}
[]
[null,"Liebe Teilnehmende beim Bundeswettbewerb 2017, \nliebe Gäste\n\nwir freuen uns, dass Sie/Du am Bundeswettbewerb 2017 in Landshut mit Ihrer/Deiner Gruppe teilnehmen/teilnimmst. \nAuch freuen wir uns über alle Gäste, die ihre Gruppe begleiten oder als Interessierte am Wettbewerb dabei sein möchten.\nFür den Wettbewerb ist leider ein gewisser Umfang an Bürokratie notwendig – wir versuchen diesen jedoch für alle so gering wie möglich zu halten.\n\nNeben dem Anmeldeformular ist diese Excel-Liste ein zentrales Dokument der Anmeldung.\nFür uns als Veranstalter ist diese Excel-Liste wichtig, da wir daraus die Daten erhalten, die wir zur Vorbereitung des Wettbewerbswochenendes benötigen. Daher bitten wir Sie/Dich, alle Informationen, die auf dem Anmeldebogen/den Anmeldebögen stehen, vollständig in diese Liste zu übertragen. Bitte verändere/n Sie nichts in der Liste und verwende/n Sie nur die Original-Liste. Falls die Liste im Open Office bearbeitet wird, speichern Sie/speichere die Datei bitte als \".xls\". \n\nWenn neben Ihrer /Deiner Gruppe noch einzelne Gäste mitkommen, können diese gerne als \"Gast\" in diese Liste eintragen werden. \nGanze Gastgruppen tragen sich bitte in eine eigene Liste ein. \n\nSollte es bis zum Bundeswettbewerb Veränderungen geben, weil sich z.B. eine Mailadresse oder andere Parameter verändern, sende/n Sie uns bitte eine neue Gesamt-Liste an die Mailadresse Personal.buwe@malteser.org  (das zuständige Diözesanreferat bitte im Cc). \n \nWas gehört zur Anmeldung?\nZu einer fristgerechten und verbindlichen Anmeldung müssen folgende Dokumente über den Dienstweg an den Bereich Personal gesendet werden:\n• Vollständige Excel-Liste: In diese Liste werden alle Informationen der Teilnehmer/innen einer Wettbewerbsgruppe und/oder Gäste  eingetragen. Digitaler Versand über das zuständige Diözesanreferat  an Personal.buwe@malteser.org .\n• Postalischer Versand der Original-Anmeldung/en an das zuständige Diözesanreferat. Der/Die zuständige Referent/in sendet die Anmeldung digital an Personal.buwe@malteser.org weiter.\nNach Eingang aller vollständigen Unterlagen wird eine kurze Bestätigung per Email an die verantwortliche Person gesendet. Sollten Unterlagen fehlen, erhaltet/n Sie/Ihr eine Erinnerung. Für die Mithilfe beim Bundeswettbewerb müssen die vollständigen Unterlagen schnellstmöglich – spätestens jedoch zum 1.Juli 2017 eingehen. \n\nWichtig\nAn-/Abmeldungen auf anderem Wege oder an andere Adressen sind nicht möglich und können seitens des Vorbereitungsteams leider nicht berücksichtigt werden.\nAnmeldungen nach dem 1. Juli 2017 werden mit einer höheren Gebühr berechnet (Helferwettbewerb 500€, Jugendwettbewerb 400€, SSD Wettbewerb 400€, Gast 90€)\n\nBei Fragen wenden Sie sich/wendet Euch gerne an: Personal.buwe@malteser.org\n\nWir bitten um die Bestätigung der zwei Aussagen (einfach das rote Feld anklicken), dann wird das Blatt mit der Anmeldeliste geöffnet!\nVielen Dank!",null,null,null,"Hier Klicken (nichts tippen!) zum Bestätigen →"]
[]
[null,"Ich werde alle im Bogen angegeben Daten plus die Informationen zu meiner Person/zu meiner Helfergruppe in die Liste übertragen. Unklarheiten oder fehlende Angaben (vor allem Bild/Fotorechten) kläre ich (im Vorfeld) mit den Erziehungsberechtigten."]
[null,"Liste und Bögen sende ich über zuständige Diözesanreferat an den Bereich Personal des Bundeswettbewerbes."]
[]
[null,"Daten des Bundeswettbewerbes"]
[null,"Anreise","Wettbewerb","Abreise","Dienstweg"]
[null,"2017-09-22","2017-09-23","2017-09-24","~ Anmeldebogen ausfüllen\n~ Original- Anmeldebogen an das zuständige Diözesanreferat senden\n~ Excel-Liste ausfüllen und digital an das zuständige Diözesanreferat senden \n~ zuständige Diözesanreferent/innen leiten Tabelle und Anmeldebogen an den Bereich Perosnal (Personal.buwe@malteser.org)\n~ Originalteilnehmerbögen werden per Post an den Bereich Personal gesendet.\n\nAdressen oder Kontakt: \n\n Personal.buwe@malteser.org\n\nMalteser-Hilfsdienst e.V.\nMarkus Wolkner\nPfarrer-Schreiner-Str. 1\n92444 Rötz"]
[null,"Ort","Diözese","Anmeldeschluss"]
[null,"Landshut","Regensburg","2017-07-01"]
[null,"Rückfragen an"]
[null,"Personal.buwe@malteser.org"]
[]
[]
[null,"Name deines Ortes:"]
[null,"Name deiner Diözese:"]
[null,"Dein Name"]
[null,"Anleitung bestätigt:"]

{"sheet":"GruppenanmeldungGäste","index":1,"n_rows":25,"n_cols":36,"rows_kept":25,"cut":false,"hidden":true,"merged":[]}
["Diözese","Ort / Schule","Briefkopf\n(automatisch)","Anrede","Gruppe\n(Wettbewerb oder Gast)","Funktion in der Gruppe","Vorname","Name","Straße","PLZ","Wohnort","Telefon","Handy\n(vor Ort erreichbar)","Gebdat","Alter (automatisch)","Emailadresse\nGruppenleiter/in, Gruppenführer/in, verantwortliche Begleitperson für weitere Infos","MHD \nMitglied\n(1=ja)","Teilnehmer\nUnterkunftsplatz benötigt?\n(1=ja)","M\n(1=männlich)","W\n(1=weiblich)","Einzelgast\nÜbernachtung mit Gruppe in der Schule\n(1=ja)","Einzelgast\nUnterkunftsplatz benötigt?\n(1=ja)","Mehrere Gäste \nVermittlung eines Unterkunftsplatzes\n(1=ja)","Gäste \nTeilnahme Eröffnungsabend\n(1=ja)\n","Gäste\nGast beim Wettbewerb?\n(1=ja)","Gäste\nTeilnahme Festabend?\n(1=ja)","Gäste\nTeilnahme Heilige Messe \n(1=ja)","Voll- kost\n(1=ja)","Vege-tarier\n(1=ja)"," Anzahl \nPKW","Anzahl Kleinbusse/ Bullis","Anreise mit Reisebus\n(1=ja)","Reisebus bleibt vor Ort\n(1=ja)","Anreise mit der Bahn\n(1=ja)","Anmelde\ndatum Bereich Personal","Betrag"]
[null,null,{"$f":"VLOOKUP(D$1&\"/\"&D2,config!A:E,4,FALSE)","v":""},null,null,null,null,null,null,null,null,null,null,null,{"$f":"IF(N2>0,FLOOR((VLOOKUP(N$1,config!A:E,4,FALSE)-N2)/365.25,1),\"\")","v":""},null,null,null,null,null,null,null,null,null,null,null,null,{"$f":"IF(AND(A2<>\"\",B2<>\"\"),1-AC2,\"\")","v":""},null,null,null,null,null,null,null,{"$f":"IF(OR(ISNA(VLOOKUP(E2,AuswahlListen!B:C,2,FALSE)),AND(ROW()>2,E2=E$2)),\"\",VLOOKUP(E2,AuswahlListen!B:C,2,FALSE)+IF(AI$2>config!D$6,config!D$7,0))","v":""}]
[{"$f":"IF(OR(G3<>\"\",H3<>\"\"),A$2,\"\")","v":""},{"$f":"IF(OR(G3<>\"\",H3<>\"\"),B$2,\"\")","v":""},{"$f":"VLOOKUP(D$1&\"/\"&D3,config!A:E,4,FALSE)","v":""},null,null,null,null,null,null,null,null,null,null,null,{"$f":"IF(N3>0,FLOOR((VLOOKUP(N$1,config!A:E,4,FALSE)-N3)/365.25,1),\"\")","v":""},null,null,null,null,null,null,null,null,null,null,null,null,"",null,null,null,null,null,null,null,{"$f":"IF(OR(ISNA(VLOOKUP(E3,AuswahlListen!B:C,2,FALSE)),AND(ROW()>2,E3=E$2)),\"\",VLOOKUP(E3,AuswahlListen!B:C,2,FALSE)+IF(AI$2>config!D$6,config!D$7,0))","v":""}]
["","",{"$f":"VLOOKUP(D$1&\"/\"&D4,config!A:E,4,FALSE)","v":""},null,null,null,null,null,null,null,null,null,null,null,{"$f":"IF(N4>0,FLOOR((VLOOKUP(N$1,config!A:E,4,FALSE)-N4)/365.25,1),\"\")","v":""},"",null,null,null,null,null,null,null,null,null,null,null,"",null,null,null,null,null,null,null,{"$f":"IF(OR(ISNA(VLOOKUP(E4,AuswahlListen!B:C,2,FALSE)),AND(ROW()>2,E4=E$2)),\"\",VLOOKUP(E4,AuswahlListen!B:C,2,FALSE)+IF(AI$2>config!D$6,config!D$7,0))","v":""}]
["","",{"$f":"VLOOKUP(D$1&\"/\"&D5,config!A:E,4,FALSE)","v":""},null,null,null,null,null,null,null,null,null,null,null,{"$f":"IF(N5>0,FLOOR((VLOOKUP(N$1,config!A:E,4,FALSE)-N5)/365.25,1),\"\")","v":""},"",null,null,null,null,null,null,null,null,null,null,null,"",null,null,null,null,null,null,null,{"$f":"IF(OR(ISNA(VLOOKUP(E5,AuswahlListen!B:C,2,FALSE)),AND(ROW()>2,E5=E$2)),\"\",VLOOKUP(E5,AuswahlListen!B:C,2,FALSE)+IF(AI$2>config!D$6,config!D$7,0))","v":""}]
["","",{"$f":"VLOOKUP(D$1&\"/\"&D6,config!A:E,4,FALSE)","v":""},null,null,null,null,null,null,null,null,null,null,null,{"$f":"IF(N6>0,FLOOR((VLOOKUP(N$1,config!A:E,4,FALSE)-N6)/365.25,1),\"\")","v":""},"",null,null,null,null,null,null,null,null,null,null,null,"",null,null,null,null,null,null,null,{"$f":"IF(OR(ISNA(VLOOKUP(E6,AuswahlListen!B:C,2,FALSE)),AND(ROW()>2,E6=E$2)),\"\",VLOOKUP(E6,AuswahlListen!B:C,2,FALSE)+IF(AI$2>config!D$6,config!D$7,0))","v":""}]
["","",{"$f":"VLOOKUP(D$1&\"/\"&D7,config!A:E,4,FALSE)","v":""},null,null,null,null,null,null,null,null,null,null,null,{"$f":"IF(N7>0,FLOOR((VLOOKUP(N$1,config!A:E,4,FALSE)-N7)/365.25,1),\"\")","v":""},"",null,null,null,null,null,null,null,null,null,null,null,"",null,null,null,null,null,null,null,{"$f":"IF(OR(ISNA(VLOOKUP(E7,AuswahlListen!B:C,2,FALSE)),AND(ROW()>2,E7=E$2)),\"\",VLOOKUP(E7,AuswahlListen!B:C,2,FALSE)+IF(AI$2>config!D$6,config!D$7,0))","v":""}]
["","",{"$f":"VLOOKUP(D$1&\"/\"&D8,config!A:E,4,FALSE)","v":""},null,null,null,null,null,null,null,null,null,null,null,{"$f":"IF(N8>0,FLOOR((VLOOKUP(N$1,config!A:E,4,FALSE)-N8)/365.25,1),\"\")","v":""},"",null,null,null,null,null,null,null,null,null,null,null,"",null,null,null,null,null,null,null,{"$f":"IF(OR(ISNA(VLOOKUP(E8,AuswahlListen!B:C,2,FALSE)),AND(ROW()>2,E8=E$2)),\"\",VLOOKUP(E8,AuswahlListen!B:C,2,FALSE)+IF(AI$2>config!D$6,config!D$7,0))","v":""}]
["","",{"$f":"VLOOKUP(D$1&\"/\"&D9,config!A:E,4,FALSE)","v":""},null,null,null,null,null,null,null,null,null,null,null,{"$f":"IF(N9>0,FLOOR((VLOOKUP(N$1,config!A:E,4,FALSE)-N9)/365.25,1),\"\")","v":""},"",null,null,null,null,null,null,null,null,null,null,null,"",null,null,null,null,null,null,null,{"$f":"IF(OR(ISNA(VLOOKUP(E9,AuswahlListen!B:C,2,FALSE)),AND(ROW()>2,E9=E$2)),\"\",VLOOKUP(E9,AuswahlListen!B:C,2,FALSE)+IF(AI$2>config!D$6,config!D$7,0))","v":""}]
["","",{"$f":"VLOOKUP(D$1&\"/\"&D10,config!A:E,4,FALSE)","v":""},null,null,null,null,null,null,null,null,null,null,null,{"$f":"IF(N10>0,FLOOR((VLOOKUP(N$1,config!A:E,4,FALSE)-N10)/365.25,1),\"\")","v":""},"",null,null,null,null,null,null,null,null,null,null,null,"",null,null,null,null,null,null,null,{"$f":"IF(OR(ISNA(VLOOKUP(E10,AuswahlListen!B:C,2,FALSE)),AND(ROW()>2,E10=E$2)),\"\",VLOOKUP(E10,AuswahlListen!B:C,2,FALSE)+IF(AI$2>config!D$6,config!D$7,0))","v":""}]
["","",{"$f":"VLOOKUP(D$1&\"/\"&D11,config!A:E,4,FALSE)","v":""},null,null,null,null,null,null,null,null,null,null,null,{"$f":"IF(N11>0,FLOOR((VLOOKUP(N$1,config!A:E,4,FALSE)-N11)/365.25,1),\"\")","v":""},"",null,null,null,null,null,null,null,null,null,null,null,"",null,null,null,null,null,null,null,{"$f":"IF(OR(ISNA(VLOOKUP(E11,AuswahlListen!B:C,2,FALSE)),AND(ROW()>2,E11=E$2)),\"\",VLOOKUP(E11,AuswahlListen!B:C,2,FALSE)+IF(AI$2>config!D$6,config!D$7,0))","v":""}]
["","",{"$f":"VLOOKUP(D$1&\"/\"&D12,config!A:E,4,FALSE)","v":""},null,null,null,null,null,null,null,null,null,null,null,{"$f":"IF(N12>0,FLOOR((VLOOKUP(N$1,config!A:E,4,FALSE)-N12)/365.25,1),\"\")","v":""},"",null,null,null,null,null,null,null,null,null,null,null,"",null,null,null,null,null,null,null,{"$f":"IF(OR(ISNA(VLOOKUP(E12,AuswahlListen!B:C,2,FALSE)),AND(ROW()>2,E12=E$2)),\"\",VLOOKUP(E12,AuswahlListen!B:C,2,FALSE)+IF(AI$2>config!D$6,config!D$7,0))","v":""}]
["","",{"$f":"VLOOKUP(D$1&\"/\"&D13,config!A:E,4,FALSE)","v":""},null,null,null,null,null,null,null,null,null,null,null,{"$f":"IF(N13>0,FLOOR((VLOOKUP(N$1,config!A:E,4,FALSE)-N13)/365.25,1),\"\")","v":""},"",null,null,null,null,null,null,null,null,null,null,null,"",null,null,null,null,null,null,null,{"$f":"IF(OR(ISNA(VLOOKUP(E13,AuswahlListen!B:C,2,FALSE)),AND(ROW()>2,E13=E$2)),\"\",VLOOKUP(E13,AuswahlListen!B:C,2,FALSE)+IF(AI$2>config!D$6,config!D$7,0))","v":""}]
["","",{"$f":"VLOOKUP(D$1&\"/\"&D14,config!A:E,4,FALSE)","v":""},null,null,null,null,null,null,null,null,null,null,null,{"$f":"IF(N14>0,FLOOR((VLOOKUP(N$1,config!A:E,4,FALSE)-N14)/365.25,1),\"\")","v":""},"",null,null,null,null,null,null,null,null,null,null,null,"",null,null,null,null,null,null,null,{"$f":"IF(OR(ISNA(VLOOKUP(E14,AuswahlListen!B:C,2,FALSE)),AND(ROW()>2,E14=E$2)),\"\",VLOOKUP(E14,AuswahlListen!B:C,2,FALSE)+IF(AI$2>config!D$6,config!D$7,0))","v":""}]
["","",{"$f":"VLOOKUP(D$1&\"/\"&D15,config!A:E,4,FALSE)","v":""},null,null,null,null,null,null,null,null,null,null,null,{"$f":"IF(N15>0,FLOOR((VLOOKUP(N$1,config!A:E,4,FALSE)-N15)/365.25,1),\"\")","v":""},"",null,null,null,null,null,null,null,null,null,null,null,"",null,null,null,null,null,null,null,{"$f":"IF(OR(ISNA(VLOOKUP(E15,AuswahlListen!B:C,2,FALSE)),AND(ROW()>2,E15=E$2)),\"\",VLOOKUP(E15,AuswahlListen!B:C,2,FALSE)+IF(AI$2>config!D$6,config!D$7,0))","v":""}]
["","",{"$f":"VLOOKUP(D$1&\"/\"&D16,config!A:E,4,FALSE)","v":""},null,null,null,null,null,null,null,null,null,null,null,{"$f":"IF(N16>0,FLOOR((VLOOKUP(N$1,config!A:E,4,FALSE)-N16)/365.25,1),\"\")","v":""},"",null,null,null,null,null,null,null,null,null,null,null,"",null,null,null,null,null,null,null,{"$f":"IF(OR(ISNA(VLOOKUP(E16,AuswahlListen!B:C,2,FALSE)),AND(ROW()>2,E16=E$2)),\"\",VLOOKUP(E16,AuswahlListen!B:C,2,FALSE)+IF(AI$2>config!D$6,config!D$7,0))","v":""}]
["","",{"$f":"VLOOKUP(D$1&\"/\"&D17,config!A:E,4,FALSE)","v":""},null,null,null,null,null,null,null,null,null,null,null,{"$f":"IF(N17>0,FLOOR((VLOOKUP(N$1,config!A:E,4,FALSE)-N17)/365.25,1),\"\")","v":""},"",null,null,null,null,null,null,null,null,null,null,null,"",null,null,null,null,null,null,null,{"$f":"IF(OR(ISNA(VLOOKUP(E17,AuswahlListen!B:C,2,FALSE)),AND(ROW()>2,E17=E$2)),\"\",VLOOKUP(E17,AuswahlListen!B:C,2,FALSE)+IF(AI$2>config!D$6,config!D$7,0))","v":""}]
["","",{"$f":"VLOOKUP(D$1&\"/\"&D18,config!A:E,4,FALSE)","v":""},null,null,null,null,null,null,null,null,null,null,null,{"$f":"IF(N18>0,FLOOR((VLOOKUP(N$1,config!A:E,4,FALSE)-N18)/365.25,1),\"\")","v":""},"",null,null,null,null,null,null,null,null,null,null,null,"",null,null,null,null,null,null,null,{"$f":"IF(OR(ISNA(VLOOKUP(E18,AuswahlListen!B:C,2,FALSE)),AND(ROW()>2,E18=E$2)),\"\",VLOOKUP(E18,AuswahlListen!B:C,2,FALSE)+IF(AI$2>config!D$6,config!D$7,0))","v":""}]
["","",{"$f":"VLOOKUP(D$1&\"/\"&D19,config!A:E,4,FALSE)","v":""},null,null,null,null,null,null,null,null,null,null,null,{"$f":"IF(N19>0,FLOOR((VLOOKUP(N$1,config!A:E,4,FALSE)-N19)/365.25,1),\"\")","v":""},"",null,null,null,null,null,null,null,null,null,null,null,"",null,null,null,null,null,null,null,{"$f":"IF(OR(ISNA(VLOOKUP(E19,AuswahlListen!B:C,2,FALSE)),AND(ROW()>2,E19=E$2)),\"\",VLOOKUP(E19,AuswahlListen!B:C,2,FALSE)+IF(AI$2>config!D$6,config!D$7,0))","v":""}]
["","",{"$f":"VLOOKUP(D$1&\"/\"&D20,config!A:E,4,FALSE)","v":""},null,null,null,null,null,null,null,null,null,null,null,{"$f":"IF(N20>0,FLOOR((VLOOKUP(N$1,config!A:E,4,FALSE)-N20)/365.25,1),\"\")","v":""},"",null,null,null,null,null,null,null,null,null,null,null,"",null,null,null,null,null,null,null,{"$f":"IF(OR(ISNA(VLOOKUP(E20,AuswahlListen!B:C,2,FALSE)),AND(ROW()>2,E20=E$2)),\"\",VLOOKUP(E20,AuswahlListen!B:C,2,FALSE)+IF(AI$2>config!D$6,config!D$7,0))","v":""}]
["","",{"$f":"VLOOKUP(D$1&\"/\"&D21,config!A:E,4,FALSE)","v":""},null,null,null,null,null,null,null,null,null,null,null,{"$f":"IF(N21>0,FLOOR((VLOOKUP(N$1,config!A:E,4,FALSE)-N21)/365.25,1),\"\")","v":""},"",null,null,null,null,null,null,null,null,null,null,null,"",null,null,null,null,null,null,null,{"$f":"IF(OR(ISNA(VLOOKUP(E21,AuswahlListen!B:C,2,FALSE)),AND(ROW()>2,E21=E$2)),\"\",VLOOKUP(E21,AuswahlListen!B:C,2,FALSE)+IF(AI$2>config!D$6,config!D$7,0))","v":""}]
["","",{"$f":"VLOOKUP(D$1&\"/\"&D22,config!A:E,4,FALSE)","v":""},null,null,null,null,null,null,null,null,null,null,null,{"$f":"IF(N22>0,FLOOR((VLOOKUP(N$1,config!A:E,4,FALSE)-N22)/365.25,1),\"\")","v":""},"",null,null,null,null,null,null,null,null,null,null,null,"",null,null,null,null,null,null,null,{"$f":"IF(OR(ISNA(VLOOKUP(E22,AuswahlListen!B:C,2,FALSE)),AND(ROW()>2,E22=E$2)),\"\",VLOOKUP(E22,AuswahlListen!B:C,2,FALSE)+IF(AI$2>config!D$6,config!D$7,0))","v":""}]
["","",{"$f":"VLOOKUP(D$1&\"/\"&D23,config!A:E,4,FALSE)","v":""},null,null,null,null,null,null,null,null,null,null,null,{"$f":"IF(N23>0,FLOOR((VLOOKUP(N$1,config!A:E,4,FALSE)-N23)/365.25,1),\"\")","v":""},"",null,null,null,null,null,null,null,null,null,null,null,"",null,null,null,null,null,null,null,{"$f":"IF(OR(ISNA(VLOOKUP(E23,AuswahlListen!B:C,2,FALSE)),AND(ROW()>2,E23=E$2)),\"\",VLOOKUP(E23,AuswahlListen!B:C,2,FALSE)+IF(AI$2>config!D$6,config!D$7,0))","v":""}]
["","",{"$f":"VLOOKUP(D$1&\"/\"&D24,config!A:E,4,FALSE)","v":""},null,null,null,null,null,null,null,null,null,null,null,{"$f":"IF(N24>0,FLOOR((VLOOKUP(N$1,config!A:E,4,FALSE)-N24)/365.25,1),\"\")","v":""},"",null,null,null,null,null,null,null,null,null,null,null,"",null,null,null,null,null,null,null,{"$f":"IF(OR(ISNA(VLOOKUP(E24,AuswahlListen!B:C,2,FALSE)),AND(ROW()>2,E24=E$2)),\"\",VLOOKUP(E24,AuswahlListen!B:C,2,FALSE)+IF(AI$2>config!D$6,config!D$7,0))","v":""}]
["","",{"$f":"VLOOKUP(D$1&\"/\"&D25,config!A:E,4,FALSE)","v":""},null,null,null,null,null,null,null,null,null,null,null,{"$f":"IF(N25>0,FLOOR((VLOOKUP(N$1,config!A:E,4,FALSE)-N25)/365.25,1),\"\")","v":""},"",null,null,null,null,null,null,null,null,null,null,null,"",null,null,null,null,null,null,null,{"$f":"IF(OR(ISNA(VLOOKUP(E25,AuswahlListen!B:C,2,FALSE)),AND(ROW()>2,E25=E$2)),\"\",VLOOKUP(E25,AuswahlListen!B:C,2,FALSE)+IF(AI$2>config!D$6,config!D$7,0))","v":""}]

{"sheet":"Konfig","index":2,"n_rows":33,"n_cols":10,"rows_kept":33,"cut":false,"hidden":true,"merged":[[1,9,8,15]]}
["Beschreibung","Mitglied","rechtzeitig?","formel","Betrag",null,"Diözesen","Anreisemittel",null,"Text Textfeld"]
["Beitrag für Mitgleider","Ja",{"$f":"TRUE","v":true},{"$f":"B2&\"/\"&C2","v":"Ja/WAHR"},100,null,null,"ungeklärt",null,"Hallo, \nwir freuen uns sehr, dass Sie Sich/Ihr Euch als Teilnehmergruppe oder als Gast/Gäste beim Bundeswettbewerb anmelden möchten/möchtet.\nBitte daran denken, dass die Tabelle digital und der Teilnehmerbogen unterschrieben per Post an das zuständige Diözesanreferat gesendet werden müssen.\nBitte die unten stehenden Felder ausfüllen und dann auf weiter klicken. Vielen Dank!"]
["Beitrag für Nichtmitgleider","Nein",{"$f":"TRUE","v":true},{"$f":"B3&\"/\"&C3","v":"Nein/WAHR"},120,null,"Aachen","Kleinbus(se)"]
["Nachmelde-Beitrag für Mitgleider","Ja",{"$f":"FALSE","v":false},{"$f":"B4&\"/\"&C4","v":"Ja/FALSCH"},120,null,"Augsburg","PKW"]
["Nachmelde-Beitrag für Nichtmitgleider","Nein",{"$f":"FALSE","v":false},{"$f":"B5&\"/\"&C5","v":"Nein/FALSCH"},140,null,"Bamberg","Reisebus"]
[null,null,null,null,null,null,"Berlin","Bahn"]
[null,null,null,null,null,null,"Dresden-Meißen"]
[null,null,null,null,null,null,"Eichstätt"]
["Drop-Downfelder",null,null,null,null,null,"Erfurt-Meiningen"]
["Drop-Downfelder",null,null,null,null,null,"Essen"]
["Drop-Downfelder",0,null,null,null,null,"Freiburg"]
["Drop-Downfelder",1,null,null,null,null,"Fulda"]
["Drop-Downfelder",2,null,null,null,null,"Görlitz"]
["Drop-Downfelder",3,null,null,null,null,"Hamburg"]
["Drop-Downfelder",4,null,null,null,null,"Hildesheim"]
["Drop-Downfelder",5,null,null,null,null,"Köln"]
["Drop-Downfelder",null,null,null,null,null,"Limburg"]
["Drop-Downfelder","Ja",null,null,null,null,"Magdeburg"]
["Drop-Downfelder","Nein",null,null,null,null,"Mainz"]
[null,null,null,null,null,null,"München - Freising"]
["Drop-Downfelder","Schwimmer",null,null,null,null,"Münster"]
["Drop-Downfelder","Nichtschwimmer",null,null,null,null,"Offi Oldenburg"]
["Drop-Downfelder","Kinderland",null,null,null,null,"Osnabrück"]
["Drop-Downfelder","Jugendland",null,null,null,null,"Paderborn"]
[null,null,null,null,null,null,"Passau"]
[null,null,null,null,null,null,"Regensburg"]
[null,null,null,null,null,null,"Rottenburg-Stuttgart"]
[null,null,null,null,null,null,"Speyer"]
[null,null,null,null,null,null,"Trier"]
[null,null,null,null,null,null,"Würzburg"]
[null,null,null,null,null,null,"Einzelperson"]
[null,null,null,null,null,null,"Familie"]
[null,null,null,null,null,null,"ausländische Gruppe"]

{"sheet":"config","index":3,"n_rows":7,"n_cols":5,"rows_kept":7,"cut":false,"hidden":true,"merged":[]}
["Schlüssel","Kategorie","Eingabe","Ausgabe","Bemerkung"]
[{"$f":"B2&\"/\"&C2","v":"Anrede/Herr"},"Anrede","Herr","Lieber","Anrede für Brief"]
[{"$f":"B3&\"/\"&C3","v":"Anrede/Frau"},"Anrede","Frau","Liebe","Anrede für Brief"]
["Anrede/","Anrede","","","Anrede für Brief"]
["Gebdat",null,null,{"$f":"Anleitung!C9","v":"2017-09-23"}]
["Verspätete Anmeldung Datum",null,null,{"$f":"Anleitung!D11","v":"2017-07-01"}]
["Verspätete Anmeldung Aufpreis",null,null,20]

{"sheet":"AuswahlListen","index":4,"n_rows":30,"n_cols":3,"rows_kept":30,"cut":false,"hidden":true,"merged":[]}
["Diözese","Gruppe","Gruppe/Preis"]
["Aachen","Helferwettbewerb",480]
["Augsburg","Jugendwettbewerb",380]
["Bamberg","SSDWettbewerb",380]
["Berlin","Gast",70]
["Bremen"]
["Dresden-Meißen"]
["Eichstätt"]
["Erfurt"]
["Essen"]
["Freiburg"]
["Fulda"]
["Görlitz"]
["Hamburg"]
["Hildesheim"]
["Köln"]
["Limburg"]
["Magdeburg"]
["Mainz"]
["München und Freising"]
["Münster"]
["Offizialat Oldenburg"]
["Osnabrück"]
["Paderborn"]
["Passau"]
["Regensburg"]
["Rottenburg-Stuttgart"]
["Speyer"]
["Trier"]
["Würzburg"]